[Event "Mistrovství Čech mládeže 2023 - HD16"]
[Site "Harrachov, Czech Republic"]
[Date "2023.10.27"]
[Round "8.4"]
[White "Pressler, Tobias"]
[Black "Vyšinský, Otakar"]
[Result "1/2-1/2"]
[TimeControl "90m + 30s"]
[WhiteElo "1965"]
[BlackElo "1599"]

1. d4 {[%clk 01:30:37]} {[%emt 00:00:23]} d5 {[%clk 01:30:54]} {[%emt
00:00:07]} 2. c4 {[%clk 01:30:42]} {[%emt 00:00:25]} dxc4 {[%clk 01:29:57]}
{[%emt 00:01:27]} 3. e3 {[%clk 01:31:05]} {[%emt 00:00:06]} e5 {[%clk
01:28:58]} {[%emt 00:01:29]} 4. Bxc4 {[%clk 01:28:40]} {[%emt 00:02:55]} exd4
{[%clk 01:23:55]} {[%emt 00:05:34]} 5. exd4 {[%clk 01:25:47]} {[%emt 00:03:24]}
Nf6 {[%clk 01:21:42]} {[%emt 00:02:42]} 6. Nf3 {[%clk 01:26:10]} {[%emt
00:00:06]} Bb4+ {[%clk 01:19:02]} {[%emt 00:03:12]} 7. Nc3 {[%clk 01:26:01]}
{[%emt 00:00:39]} O-O {[%clk 01:18:51]} {[%emt 00:00:41]} 8. O-O {[%clk
01:26:16]} {[%emt 00:00:14]} Bg4 {[%clk 01:14:17]} {[%emt 00:05:05]} 9. Be3
{[%clk 01:19:19]} {[%emt 00:07:27]} c6 {[%clk 01:11:17]} {[%emt 00:03:30]} 10.
h3 {[%clk 01:19:37]} {[%emt 00:00:12]} Bh5 {[%clk 01:09:25]} {[%emt 00:02:22]}
11. g4 {[%clk 01:16:37]} {[%emt 00:03:30]} Bg6 {[%clk 01:09:33]} {[%emt
00:00:22]} 12. Ne5 {[%clk 01:17:01]} {[%emt 00:00:05]} Bxc3 {[%clk 00:54:25]}
{[%emt 00:15:38]} 13. bxc3 {[%clk 01:16:14]} {[%emt 00:01:17]} Be4 {[%clk
00:53:32]} {[%emt 00:01:23]} 14. Qb3 {[%clk 01:16:12]} {[%emt 00:00:32]} Qe7
{[%clk 00:51:54]} {[%emt 00:02:07]} 15. Bg5 {[%clk 01:00:08]} {[%emt 00:16:34]}
b5 {[%clk 00:50:45]} {[%emt 00:01:39]} 16. Bd3 {[%clk 00:56:16]} {[%emt
00:04:21]} Bxd3 {[%clk 00:48:58]} {[%emt 00:02:17]} 17. Nxd3 {[%clk 00:55:54]}
{[%emt 00:00:52]} Nbd7 {[%clk 00:41:59]} {[%emt 00:07:29]} 18. Rfe1 {[%clk
00:51:54]} {[%emt 00:04:30]} Qd6 {[%clk 00:42:05]} {[%emt 00:00:24]} 19. Bf4
{[%clk 00:40:27]} {[%emt 00:11:57]} Qd5 {[%clk 00:42:22]} {[%emt 00:00:13]} 20.
Re7 {[%clk 00:40:41]} {[%emt 00:00:14]} Nb6 {[%clk 00:32:08]} {[%emt 00:10:46]}
21. Re5 {[%clk 00:34:15]} {[%emt 00:06:56]} Qf3 {[%clk 00:31:02]} {[%emt
00:01:36]} 22. Re3 {[%clk 00:34:14]} {[%emt 00:00:31]} Qd5 {[%clk 00:31:09]}
{[%emt 00:00:22]} 23. Re5 {[%clk 00:34:07]} {[%emt 00:00:36]} Qf3 {[%clk
00:31:29]} {[%emt 00:00:10]} 24. Re3 {[%clk 00:34:17]} {[%emt 00:00:20]} Qd5
{[%clk 00:31:55]} {[%emt 00:00:04]} 25. Re5 {[%clk 00:31:14]} {[%emt 00:03:33]}
1/2-1/2

[Event "Mistrovství Čech mládeže 2023 - HD16"]
[Site "Harrachov, Czech Republic"]
[Date "2023.10.27"]
[Round "8.5"]
[White "Veverka, Vladimír"]
[Black "Tegda, Vojtěch"]
[Result "0-1"]
[TimeControl "90m + 30s"]
[WhiteElo "1849"]
[BlackElo "1731"]

1. e4 {[%clk 01:30:54]} {[%emt 00:00:05]} e5 {[%clk 01:30:55]} {[%emt
00:00:05]} 2. Nf3 {[%clk 01:31:19]} {[%emt 00:00:05]} Nc6 {[%clk 01:31:21]}
{[%emt 00:00:04]} 3. Bb5 {[%clk 01:31:44]} {[%emt 00:00:05]} a6 {[%clk
01:30:53]} {[%emt 00:00:59]} 4. Ba4 {[%clk 01:32:04]} {[%emt 00:00:10]} Nf6
{[%clk 01:30:40]} {[%emt 00:00:43]} 5. O-O {[%clk 01:31:16]} {[%emt 00:01:18]}
b5 {[%clk 01:29:25]} {[%emt 00:01:45]} 6. Bb3 {[%clk 01:31:39]} {[%emt
00:00:08]} Bc5 {[%clk 01:29:44]} {[%emt 00:00:09]} 7. Re1 {[%clk 01:15:39]}
{[%emt 00:16:31]} d6 {[%clk 01:28:08]} {[%emt 00:02:06]} 8. h3 {[%clk
01:11:52]} {[%emt 00:04:17]} h6 {[%clk 01:20:09]} {[%emt 00:08:29]} 9. c3
{[%clk 01:09:52]} {[%emt 00:02:30]} O-O {[%clk 01:14:43]} {[%emt 00:05:56]} 10.
d4 {[%clk 01:09:19]} {[%emt 00:01:03]} Ba7 {[%clk 01:11:57]} {[%emt 00:03:15]}
11. a4 {[%clk 01:02:09]} {[%emt 00:07:41]} Bb7 {[%clk 01:00:46]} {[%emt
00:11:41]} 12. axb5 {[%clk 00:59:55]} {[%emt 00:02:44]} axb5 {[%clk 01:01:13]}
{[%emt 00:00:03]} 13. Qd3 {[%clk 00:54:21]} {[%emt 00:06:04]} Ne7 {[%clk
00:53:42]} {[%emt 00:08:00]} 14. Kf1 {[%clk 00:44:41]} {[%emt 00:10:11]} Ng6
{[%clk 00:49:59]} {[%emt 00:04:13]} 15. dxe5 {[%clk 00:27:56]} {[%emt
00:17:15]} Nxe5 {[%clk 00:48:39]} {[%emt 00:01:50]} 16. Nxe5 {[%clk 00:27:59]}
{[%emt 00:00:28]} dxe5 {[%clk 00:49:00]} {[%emt 00:00:09]} 17. Qxb5 {[%clk
00:25:07]} {[%emt 00:03:22]} Bxe4 {[%clk 00:49:11]} {[%emt 00:00:18]} 18. Rxe4
{[%clk 00:24:30]} {[%emt 00:01:07]} Nxe4 {[%clk 00:49:25]} {[%emt 00:00:16]} 19.
Qd5 {[%clk 00:14:59]} {[%emt 00:10:02]} Qf6 {[%clk 00:46:55]} {[%emt 00:02:59]}
20. f3 {[%clk 00:14:21]} {[%emt 00:01:08]} Qh4 {[%clk 00:41:45]} {[%emt
00:05:39]} 21. Ke2 {[%clk 00:13:23]} {[%emt 00:01:29]} Ng3+ {[%clk 00:41:26]}
{[%emt 00:00:49]} 22. Kd1 {[%clk 00:11:41]} {[%emt 00:02:13]} Rfd8 {[%clk
00:40:36]} {[%emt 00:01:19]} 0-1

[Event "Mistrovství Čech mládeže 2023 - HD16"]
[Site "Harrachov, Czech Republic"]
[Date "2023.10.27"]
[Round "8.6"]
[White "Večeř, Martin"]
[Black "Novotný, Dominik"]
[Result "1-0"]
[TimeControl "90m + 30s"]
[WhiteElo "1569"]
[BlackElo "1929"]

1. d4 {[%clk 01:30:58]} {[%emt 00:00:01]} Nf6 {[%clk 01:30:50]} {[%emt
00:00:10]} 2. Bg5 {[%clk 01:31:21]} {[%emt 00:00:07]} e6 {[%clk 01:31:01]}
{[%emt 00:00:20]} 3. Nd2 {[%clk 01:31:08]} {[%emt 00:00:42]} d5 {[%clk
01:29:51]} {[%emt 00:01:40]} 4. e3 {[%clk 01:30:52]} {[%emt 00:00:47]} c5
{[%clk 01:28:41]} {[%emt 00:01:39]} 5. c3 {[%clk 01:30:37]} {[%emt 00:00:46]}
Nc6 {[%clk 01:27:10]} {[%emt 00:02:01]} 6. f4 {[%clk 01:29:07]} {[%emt
00:02:00]} b6 {[%clk 01:23:13]} {[%emt 00:04:27]} 7. Bd3 {[%clk 01:28:15]}
{[%emt 00:01:22]} Be7 {[%clk 01:21:35]} {[%emt 00:02:08]} 8. Ngf3 {[%clk
01:27:40]} {[%emt 00:01:05]} O-O {[%clk 01:19:15]} {[%emt 00:02:50]} 9. O-O
{[%clk 01:26:55]} {[%emt 00:01:15]} Bb7 {[%clk 01:15:59]} {[%emt 00:03:47]} 10.
Ne5 {[%clk 01:24:26]} {[%emt 00:02:58]} h6 {[%clk 01:11:15]} {[%emt 00:05:14]}
11. Bxf6 {[%clk 01:12:06]} {[%emt 00:12:50]} Bxf6 {[%clk 01:11:34]} {[%emt
00:00:11]} 12. Qe2 {[%clk 01:12:20]} {[%emt 00:00:16]} c4 {[%clk 00:57:53]}
{[%emt 00:14:11]} 13. Bc2 {[%clk 01:11:46]} {[%emt 00:01:04]} b5 {[%clk
00:57:43]} {[%emt 00:00:40]} 14. Rf3 {[%clk 01:07:46]} {[%emt 00:04:29]} g6
{[%clk 00:51:03]} {[%emt 00:07:10]} 15. Rh3 {[%clk 00:49:45]} {[%emt 00:18:31]}
Nxe5 {[%clk 00:46:47]} {[%emt 00:04:46]} 16. fxe5 {[%clk 00:49:51]} {[%emt
00:00:24]} Bg7 {[%clk 00:47:00]} {[%emt 00:00:17]} 17. Qg4 {[%clk 00:45:19]}
{[%emt 00:05:02]} Qe7 {[%clk 00:44:15]} {[%emt 00:03:15]} 18. Rf1 {[%clk
00:44:41]} {[%emt 00:01:08]} a5 {[%clk 00:42:42]} {[%emt 00:02:03]} 19. Nf3
{[%clk 00:33:30]} {[%emt 00:11:42]} b4 {[%clk 00:36:23]} {[%emt 00:06:49]} 20.
Bxg6 {[%clk 00:29:38]} {[%emt 00:04:22]} fxg6 {[%clk 00:33:34]} {[%emt
00:03:20]} 21. Qxg6 {[%clk 00:30:02]} {[%emt 00:00:06]} Qf7 {[%clk 00:25:10]}
{[%emt 00:08:54]} 22. Rxh6 {[%clk 00:29:03]} {[%emt 00:01:28]} Qxg6 {[%clk
00:20:57]} {[%emt 00:04:43]} 23. Rxg6 {[%clk 00:29:21]} {[%emt 00:00:12]} Bc8
{[%clk 00:16:01]} {[%emt 00:05:26]} 24. Ng5 {[%clk 00:28:24]} {[%emt 00:01:26]}
Ra6 {[%clk 00:13:32]} {[%emt 00:03:00]} 25. h4 {[%clk 00:26:59]} {[%emt
00:01:54]} Bd7 {[%clk 00:11:37]} {[%emt 00:02:26]} 26. h5 {[%clk 00:21:41]}
{[%emt 00:05:48]} Rxf1+ {[%clk 00:08:46]} {[%emt 00:03:20]} 27. Kxf1 {[%clk
00:22:04]} {[%emt 00:00:07]} Be8 {[%clk 00:08:29]} {[%emt 00:00:48]} 28. Rxe6
{[%clk 00:22:14]} {[%emt 00:00:20]} Rxe6 {[%clk 00:08:08]} {[%emt 00:00:51]} 29.
Nxe6 {[%clk 00:22:36]} {[%emt 00:00:07]} Bxh5 {[%clk 00:07:35]} {[%emt
00:01:03]} 30. Nc7 {[%clk 00:22:43]} {[%emt 00:00:24]} Bf7 {[%clk 00:06:03]}
{[%emt 00:02:02]} 31. e6 {[%clk 00:22:57]} {[%emt 00:00:16]} Bg6 {[%clk
00:06:25]} {[%emt 00:00:08]} 32. e7 {[%clk 00:22:57]} {[%emt 00:00:30]} Bh6
{[%clk 00:04:28]} {[%emt 00:02:27]} 33. Kf2 {[%clk 00:22:10]} {[%emt 00:01:17]}
bxc3 {[%clk 00:04:14]} {[%emt 00:00:44]} 34. bxc3 {[%clk 00:22:26]} {[%emt
00:00:15]} Bf7 {[%clk 00:03:36]} {[%emt 00:01:07]} 35. e8=Q+ {[%clk 00:22:46]}
{[%emt 00:00:10]} Bxe8 {[%clk 00:03:58]} {[%emt 00:00:08]} 36. Nxe8 {[%clk
00:23:09]} {[%emt 00:00:06]} Bg5 {[%clk 00:02:29]} {[%emt 00:02:00]} 37. Nc7
{[%clk 00:23:31]} {[%emt 00:00:08]} Kf7 {[%clk 00:02:51]} {[%emt 00:00:08]} 38.
Nxd5 {[%clk 00:23:23]} {[%emt 00:00:38]} Bd8 {[%clk 00:03:01]} {[%emt
00:00:20]} 39. e4 {[%clk 00:22:28]} {[%emt 00:01:25]} Bg5 {[%clk 00:02:39]}
{[%emt 00:00:52]} 40. Ne3 {[%clk 00:22:29]} {[%emt 00:00:28]} 1-0

[Event "Mistrovství Čech mládeže 2023 - HD16"]
[Site "Harrachov, Czech Republic"]
[Date "2023.10.27"]
[Round "8.7"]
[White "Vlček, Vojtěch"]
[Black "Síleš, Jan"]
[Result "1/2-1/2"]
[TimeControl "90m + 30s"]
[WhiteElo "1661"]
[BlackElo "1839"]

1. d4 {[%clk 01:30:28]} {[%emt 00:00:31]} Nf6 {[%clk 01:30:53]} {[%emt
00:00:07]} 2. c4 {[%clk 01:30:54]} {[%emt 00:00:04]} e6 {[%clk 01:31:20]}
{[%emt 00:00:03]} 3. Nf3 {[%clk 01:29:41]} {[%emt 00:01:43]} c5 {[%clk
01:30:32]} {[%emt 00:01:18]} 4. d5 {[%clk 01:28:48]} {[%emt 00:01:23]} b5
{[%clk 01:30:44]} {[%emt 00:00:18]} 5. Nc3 {[%clk 01:25:26]} {[%emt 00:03:52]}
b4 {[%clk 01:23:08]} {[%emt 00:08:07]} 6. Nb1 {[%clk 01:16:08]} {[%emt
00:09:48]} d6 {[%clk 01:16:30]} {[%emt 00:07:07]} 7. Qb3 {[%clk 01:10:54]}
{[%emt 00:05:43]} Be7 {[%clk 01:04:33]} {[%emt 00:12:28]} 8. Nbd2 {[%clk
01:10:14]} {[%emt 00:01:09]} exd5 {[%clk 01:00:08]} {[%emt 00:04:55]} 9. cxd5
{[%clk 01:10:34]} {[%emt 00:00:10]} a5 {[%clk 00:57:27]} {[%emt 00:03:11]} 10.
e4 {[%clk 01:06:10]} {[%emt 00:04:53]} O-O {[%clk 00:56:12]} {[%emt 00:01:44]}
11. Bd3 {[%clk 01:06:33]} {[%emt 00:00:07]} Ba6 {[%clk 00:55:22]} {[%emt
00:01:20]} 12. O-O {[%clk 01:04:56]} {[%emt 00:02:06]} Qc8 {[%clk 00:47:59]}
{[%emt 00:07:54]} 13. Re1 {[%clk 01:03:01]} {[%emt 00:02:25]} Nbd7 {[%clk
00:47:17]} {[%emt 00:01:12]} 14. Bxa6 {[%clk 00:49:19]} {[%emt 00:14:12]} Qxa6
{[%clk 00:47:20]} {[%emt 00:00:27]} 15. Nc4 {[%clk 00:46:48]} {[%emt 00:03:01]}
a4 {[%clk 00:42:08]} {[%emt 00:05:43]} 16. Qc2 {[%clk 00:46:56]} {[%emt
00:00:21]} Rfe8 {[%clk 00:40:33]} {[%emt 00:02:05]} 17. Bg5 {[%clk 00:33:22]}
{[%emt 00:14:04]} Nb6 {[%clk 00:37:43]} {[%emt 00:03:20]} 18. Nxb6 {[%clk
00:19:06]} {[%emt 00:14:46]} Qxb6 {[%clk 00:37:59]} {[%emt 00:00:14]} 19. Qc4
{[%clk 00:18:18]} {[%emt 00:01:18]} h6 {[%clk 00:34:16]} {[%emt 00:04:13]} 20.
Bh4 {[%clk 00:18:28]} {[%emt 00:00:20]} Nd7 {[%clk 00:33:30]} {[%emt 00:01:17]}
21. Bxe7 {[%clk 00:17:30]} {[%emt 00:01:28]} Rxe7 {[%clk 00:33:11]} {[%emt
00:00:49]} 22. a3 {[%clk 00:17:06]} {[%emt 00:00:54]} b3 {[%clk 00:31:57]}
{[%emt 00:01:43]} 23. Re3 {[%clk 00:16:33]} {[%emt 00:01:02]} Qa6 {[%clk
00:25:19]} {[%emt 00:07:09]} 24. Nd2 {[%clk 00:15:29]} {[%emt 00:01:33]} Nb6
{[%clk 00:24:50]} {[%emt 00:00:59]} 25. Qxa6 {[%clk 00:15:46]} {[%emt
00:00:12]} Rxa6 {[%clk 00:25:19]} {[%emt 00:00:03]} 26. Rc1 {[%clk 00:16:05]}
{[%emt 00:00:10]} f5 {[%clk 00:19:58]} {[%emt 00:05:52]} 27. Nc4 {[%clk
00:15:05]} {[%emt 00:01:30]} Nxc4 {[%clk 00:13:54]} {[%emt 00:06:33]} 28. Rxc4
{[%clk 00:15:31]} {[%emt 00:00:04]} Rxe4 {[%clk 00:14:13]} {[%emt 00:00:12]} 29.
Rexe4 {[%clk 00:15:52]} {[%emt 00:00:09]} fxe4 {[%clk 00:14:35]} {[%emt
00:00:08]} 30. Kf1 {[%clk 00:15:58]} {[%emt 00:00:24]} Kf7 {[%clk 00:12:40]}
{[%emt 00:02:25]} 31. Rxe4 {[%clk 00:16:18]} {[%emt 00:00:10]} Ra7 {[%clk
00:10:51]} {[%emt 00:02:20]} 32. Re6 {[%clk 00:15:16]} {[%emt 00:01:32]} c4
{[%clk 00:08:56]} {[%emt 00:02:25]} 33. Re3 {[%clk 00:13:47]} {[%emt 00:01:58]}
Rc7 {[%clk 00:08:07]} {[%emt 00:01:20]} 34. Rc3 {[%clk 00:10:46]} {[%emt
00:03:31]} Kf6 {[%clk 00:07:38]} {[%emt 00:00:59]} 35. Ke2 {[%clk 00:09:49]}
{[%emt 00:01:27]} Ke5 {[%clk 00:07:31]} {[%emt 00:00:36]} 36. Kd2 {[%clk
00:10:06]} {[%emt 00:00:13]} Kxd5 {[%clk 00:07:12]} {[%emt 00:00:49]} 37. Re3
{[%clk 00:10:12]} {[%emt 00:00:24]} Kd4 {[%clk 00:04:34]} {[%emt 00:03:08]} 38.
Rf3 {[%clk 00:10:19]} {[%emt 00:00:23]} d5 {[%clk 00:04:12]} {[%emt 00:00:52]}
39. h4 {[%clk 00:10:06]} {[%emt 00:00:43]} Re7 {[%clk 00:03:20]} {[%emt
00:01:23]} 40. Rf4+ {[%clk 00:10:00]} {[%emt 00:00:36]} Kc5 {[%clk 00:03:16]}
{[%emt 00:00:34]} 41. Rf8 {[%clk 00:10:05]} {[%emt 00:00:25]} Rc7 {[%clk
00:02:31]} {[%emt 00:01:16]} 42. Ra8 {[%clk 00:10:18]} {[%emt 00:00:16]} d4
{[%clk 00:01:25]} {[%emt 00:01:36]} 43. Rxa4 {[%clk 00:10:08]} {[%emt
00:00:40]} Kb5 {[%clk 00:00:57]} {[%emt 00:00:59]} 44. Rb4+ {[%clk 00:10:15]}
{[%emt 00:00:23]} Ka5 {[%clk 00:01:10]} {[%emt 00:00:17]} 45. Rb8 {[%clk
00:10:38]} {[%emt 00:00:06]} c3+ {[%clk 00:01:13]} {[%emt 00:00:27]} 46. bxc3
{[%clk 00:11:03]} {[%emt 00:00:05]} dxc3+ {[%clk 00:01:35]} {[%emt 00:00:09]}
47. Kc1 {[%clk 00:11:25]} {[%emt 00:00:09]} Ka4 {[%clk 00:00:49]} {[%emt
00:01:16]} 48. Ra8+ {[%clk 00:11:51]} {[%emt 00:00:03]} Kb5 {[%clk 00:01:07]}
{[%emt 00:00:12]} 49. Rb8+ {[%clk 00:12:15]} {[%emt 00:00:06]} Kc4 {[%clk
00:01:18]} {[%emt 00:00:20]} 50. Rb4+ {[%clk 00:12:38]} {[%emt 00:00:06]} Kd3
{[%clk 00:01:01]} {[%emt 00:00:47]} 51. Rxb3 {[%clk 00:13:02]} {[%emt
00:00:06]} Rf7 {[%clk 00:00:41]} {[%emt 00:00:51]} 52. f3 {[%clk 00:13:01]}
{[%emt 00:00:31]} Rf4 {[%clk 00:00:41]} {[%emt 00:00:29]} 53. Rb8 {[%clk
00:12:58]} {[%emt 00:00:33]} Rxh4 {[%clk 00:00:40]} {[%emt 00:00:31]} 54. Rd8+
{[%clk 00:13:11]} {[%emt 00:00:17]} Kc4 {[%clk 00:00:39]} {[%emt 00:00:31]} 55.
Kc2 {[%clk 00:12:38]} {[%emt 00:01:03]} Rh2 {[%clk 00:01:03]} {[%emt 00:00:06]}
56. Rc8+ {[%clk 00:12:58]} {[%emt 00:00:10]} Kd4 {[%clk 00:01:17]} {[%emt
00:00:16]} 57. Rd8+ {[%clk 00:13:17]} {[%emt 00:00:11]} 1/2-1/2

[Event "Mistrovství Čech mládeže 2023 - HD16"]
[Site "Harrachov, Czech Republic"]
[Date "2023.10.27"]
[Round "8.8"]
[White "Dudková, Josefína"]
[Black "Svoboda, Daniel"]
[Result "1/2-1/2"]
[TimeControl "90m + 30s"]
[WhiteElo "1587"]
[BlackElo "1766"]

1. d4 {[%clk 01:30:56]} {[%emt 00:00:04]} d5 {[%clk 01:30:49]} {[%emt
00:00:12]} 2. Nf3 {[%clk 01:31:08]} {[%emt 00:00:17]} Nf6 {[%clk 01:29:55]}
{[%emt 00:01:24]} 3. e3 {[%clk 01:31:19]} {[%emt 00:00:19]} c5 {[%clk
01:29:36]} {[%emt 00:00:49]} 4. b3 {[%clk 01:30:25]} {[%emt 00:01:23]} cxd4
{[%clk 01:24:45]} {[%emt 00:05:22]} 5. Nxd4 {[%clk 01:25:40]} {[%emt 00:05:16]}
e5 {[%clk 01:21:13]} {[%emt 00:04:01]} 6. Nf3 {[%clk 01:23:56]} {[%emt
00:02:14]} Nc6 {[%clk 01:17:50]} {[%emt 00:03:53]} 7. Bb2 {[%clk 01:22:44]}
{[%emt 00:01:42]} Bd6 {[%clk 01:13:57]} {[%emt 00:04:22]} 8. Nbd2 {[%clk
01:05:55]} {[%emt 00:17:19]} Bf5 {[%clk 01:05:50]} {[%emt 00:08:36]} 9. Bb5
{[%clk 00:58:08]} {[%emt 00:08:17]} Qc7 {[%clk 01:01:08]} {[%emt 00:05:12]} 10.
c4 {[%emt 00:04:49]} O-O {[%clk 00:51:22]} {[%emt 00:10:00]} 11. Bxc6 {[%clk
00:44:57]} {[%emt 00:09:39]} bxc6 {[%clk 00:51:11]} {[%emt 00:00:41]} 12. Rc1
{[%clk 00:44:17]} {[%emt 00:01:09]} e4 {[%clk 00:27:15]} {[%emt 00:24:26]} 13.
Nd4 {[%clk 00:38:39]} {[%emt 00:06:08]} Bg6 {[%clk 00:25:12]} {[%emt 00:02:33]}
14. cxd5 {[%clk 00:33:44]} {[%emt 00:05:25]} Nxd5 {[%clk 00:24:12]} {[%emt
00:01:30]} 15. Rxc6 {[%clk 00:30:24]} {[%emt 00:03:51]} Qb8 {[%clk 00:22:28]}
{[%emt 00:02:14]} 16. a3 {[%clk 00:24:00]} {[%emt 00:06:53]} Bxh2 {[%clk
00:18:02]} {[%emt 00:04:55]} 17. Qg4 {[%clk 00:15:46]} {[%emt 00:08:44]} Be5
{[%clk 00:16:46]} {[%emt 00:01:46]} 18. Rxg6 {[%clk 00:11:32]} {[%emt
00:04:44]} hxg6 {[%clk 00:07:26]} {[%emt 00:09:51]} 19. Qh3 {[%clk 00:09:39]}
{[%emt 00:02:23]} f5 {[%clk 00:07:08]} {[%emt 00:00:49]} 20. Qh7+ {[%clk
00:09:39]} {[%emt 00:00:30]} Kf7 {[%clk 00:07:30]} {[%emt 00:00:08]} 21. Nc6
{[%clk 00:09:49]} {[%emt 00:00:20]} Bxb2 {[%clk 00:04:04]} {[%emt 00:03:55]} 22.
Nxb8 {[%clk 00:09:20]} {[%emt 00:01:00]} Raxb8 {[%clk 00:04:06]} {[%emt
00:00:28]} 23. Nc4 {[%clk 00:03:42]} {[%emt 00:06:08]} 1/2-1/2

[Event "Mistrovství Čech mládeže 2023 - HD16"]
[Site "Harrachov, Czech Republic"]
[Date "2023.10.27"]
[Round "8.9"]
[White "Garabik, Marek"]
[Black "Kučina, Ondřej"]
[Result "1-0"]
[TimeControl "90m + 30s"]
[WhiteElo "1697"]
[BlackElo "1592"]

1. e4 {[%clk 01:30:29]} {[%emt 00:00:30]} e6 {[%clk 01:30:55]} {[%emt
00:00:06]} 2. d4 {[%clk 01:30:51]} {[%emt 00:00:08]} d5 {[%clk 01:31:20]}
{[%emt 00:00:05]} 3. Nc3 {[%clk 01:31:09]} {[%emt 00:00:11]} dxe4 {[%clk
01:31:44]} {[%emt 00:00:06]} 4. Nxe4 {[%clk 01:29:12]} {[%emt 00:02:27]} Bd7
{[%clk 01:32:07]} {[%emt 00:00:07]} 5. Nf3 {[%clk 01:28:22]} {[%emt 00:01:20]}
Bc6 {[%clk 01:32:00]} {[%emt 00:00:07]} 6. Bd3 {[%clk 01:27:46]} {[%emt
00:01:05]} Nd7 {[%clk 01:32:28]} {[%emt 00:00:32]} 7. O-O {[%clk 01:27:18]}
{[%emt 00:00:58]} Ngf6 {[%clk 01:32:31]} {[%emt 00:00:28]} 8. Qe2 {[%clk
01:23:42]} {[%emt 00:04:06]} Be7 {[%clk 01:31:11]} {[%emt 00:01:50]} 9. Re1
{[%clk 01:19:33]} {[%emt 00:04:38]} Nxe4 {[%clk 01:27:27]} {[%emt 00:04:15]} 10.
Bxe4 {[%clk 01:19:49]} {[%emt 00:00:14]} Bxe4 {[%clk 01:27:47]} {[%emt
00:00:09]} 11. Qxe4 {[%clk 01:20:08]} {[%emt 00:00:12]} c6 {[%clk 01:28:12]}
{[%emt 00:00:06]} 12. Bf4 {[%clk 01:09:18]} {[%emt 00:11:20]} O-O {[%clk
01:27:54]} {[%emt 00:00:48]} 13. Qe2 {[%clk 01:06:44]} {[%emt 00:03:04]} Nf6
{[%clk 01:27:28]} {[%emt 00:00:57]} 14. c3 {[%clk 01:03:59]} {[%emt 00:03:15]}
c5 {[%clk 01:23:46]} {[%emt 00:04:12]} 15. Rad1 {[%clk 01:02:53]} {[%emt
00:01:35]} cxd4 {[%clk 01:23:17]} {[%emt 00:01:00]} 16. Nxd4 {[%clk 00:59:47]}
{[%emt 00:03:36]} Qb6 {[%clk 01:23:12]} {[%emt 00:00:35]} 17. Nb3 {[%clk
00:41:03]} {[%emt 00:19:13]} Rfd8 {[%clk 01:22:44]} {[%emt 00:00:59]} 18. Rxd8+
{[%clk 00:31:14]} {[%emt 00:10:20]} Rxd8 {[%clk 01:22:15]} {[%emt 00:00:59]} 19.
Rd1 {[%clk 00:30:48]} {[%emt 00:00:56]} Rxd1+ {[%clk 01:22:22]} {[%emt
00:00:23]} 20. Qxd1 {[%clk 00:31:10]} {[%emt 00:00:08]} Qd8 {[%clk 01:22:43]}
{[%emt 00:00:09]} 21. Qxd8+ {[%clk 00:31:32]} {[%emt 00:00:08]} Bxd8 {[%clk
01:23:06]} {[%emt 00:00:07]} 22. Kf1 {[%clk 00:29:13]} {[%emt 00:02:50]} Kf8
{[%clk 01:21:46]} {[%emt 00:01:50]} 23. Be3 {[%clk 00:27:47]} {[%emt 00:01:56]}
a5 {[%clk 01:19:30]} {[%emt 00:02:46]} 24. a4 {[%clk 00:23:53]} {[%emt
00:04:24]} Nd7 {[%clk 01:18:37]} {[%emt 00:01:22]} 25. Nc5 {[%clk 00:21:46]}
{[%emt 00:02:38]} Nxc5 {[%clk 01:18:41]} {[%emt 00:00:25]} 26. Bxc5+ {[%clk
00:22:15]} {[%emt 00:00:02]} Ke8 {[%clk 01:19:01]} {[%emt 00:00:10]} 27. Ke2
{[%clk 00:22:32]} {[%emt 00:00:12]} Kd7 {[%clk 01:19:24]} {[%emt 00:00:07]} 28.
Kd3 {[%clk 00:21:55]} {[%emt 00:01:06]} e5 {[%clk 01:11:45]} {[%emt 00:08:09]}
29. Kc4 {[%clk 00:18:50]} {[%emt 00:03:35]} Kc6 {[%clk 01:11:33]} {[%emt
00:00:42]} 30. b4 {[%clk 00:18:43]} {[%emt 00:00:38]} axb4 {[%clk 01:11:54]}
{[%emt 00:00:09]} 31. cxb4 {[%clk 00:17:58]} {[%emt 00:01:16]} f5 {[%clk
01:11:41]} {[%emt 00:00:42]} 32. a5 {[%clk 00:17:21]} {[%emt 00:01:07]} Kd7
{[%clk 01:04:35]} {[%emt 00:07:36]} 33. Kd5 {[%clk 00:17:15]} {[%emt 00:00:36]}
Bc7 {[%clk 01:04:23]} {[%emt 00:00:42]} 34. h3 {[%clk 00:16:09]} {[%emt
00:01:36]} g6 {[%clk 01:03:22]} {[%emt 00:01:32]} 35. f3 {[%clk 00:16:08]}
{[%emt 00:00:31]} e4 {[%clk 01:00:20]} {[%emt 00:03:32]} 36. fxe4 {[%clk
00:16:04]} {[%emt 00:00:35]} fxe4 {[%clk 01:00:43]} {[%emt 00:00:06]} 37. Kxe4
{[%clk 00:16:32]} {[%emt 00:00:02]} Kc6 {[%clk 01:01:05]} {[%emt 00:00:08]} 38.
g4 {[%clk 00:16:18]} {[%emt 00:00:45]} Kb5 {[%clk 01:01:26]} {[%emt 00:00:09]}
39. Kd4 {[%clk 00:11:39]} {[%emt 00:05:08]} Bg3 {[%clk 01:01:07]} {[%emt
00:00:48]} 40. Kd5 {[%clk 00:10:41]} {[%emt 00:01:29]} h5 {[%clk 00:58:18]}
{[%emt 00:03:18]} 41. g5 {[%clk 00:07:02]} {[%emt 00:04:10]} Be1 {[%clk
00:51:58]} {[%emt 00:06:50]} 42. Ke6 {[%clk 00:06:57]} {[%emt 00:00:35]} Bxb4
{[%clk 00:52:16]} {[%emt 00:00:12]} 43. Bxb4 {[%clk 00:07:13]} {[%emt
00:00:15]} Kxb4 {[%clk 00:52:40]} {[%emt 00:00:05]} 44. Kf6 {[%clk 00:07:38]}
{[%emt 00:00:04]} Kxa5 {[%clk 00:53:00]} {[%emt 00:00:10]} 45. Kxg6 {[%clk
00:07:59]} {[%emt 00:00:09]} b5 {[%clk 00:53:02]} {[%emt 00:00:29]} 46. Kxh5
{[%clk 00:07:56]} {[%emt 00:00:34]} 1-0